bitfinex/quotes_BTCUSD_20250331
["timestamp","ask_amount","ask_price","bid_price","bid_amount"]
[1743425202713,0.3424393,82552.0,82551.0,0.12260386]
[1743425203141,0.254394,82549.0,82548.0,1.22342399]
[1743425203346,0.254394,82549.0,82548.0,1.34602785]
[1743425204309,0.24228,82549.0,82548.0,1.34602785]
[1743425204716,0.1001683,82552.0,82551.0,0.254387]
[1743425204921,0.1001683,82552.0,82551.0,0.37699086]
[1743425205120,0.1001683,82552.0,82551.0,0.36487786]
[1743425205306,0.1001683,82552.0,82551.0,0.12260386]
[1743425205707,0.3424393,82552.0,82551.0,0.12260386]
[1743425205929,0.1001683,82552.0,82551.0,0.36487786]
[1743425206213,0.1001683,82552.0,82551.0,0.37699086]
[1743425206416,0.1001683,82552.0,82551.0,0.36487786]
[1743425206874,0.1001683,82552.0,82551.0,0.40168313]
[1743425207511,0.1001683,82552.0,82551.0,0.54892398]
[1743425208534,3e-07,82552.0,82551.0,0.54892398]
[1743425210069,0.0001686,82552.0,82551.0,0.54892398]
[1743425213293,0.0001686,82552.0,82551.0,0.29453698]
[1743425213515,0.0001686,82552.0,82551.0,0.53681098]
[1743425213731,0.0001686,82552.0,82551.0,0.54892398]
[1743425214790,0.0001686,82552.0,82551.0,0.29453698]
[1743425215020,0.0001686,82552.0,82551.0,0.54892398]
[1743425223521,0.0001686,82552.0,82551.0,0.84892398]
[1743425224157,6e-07,82552.0,82551.0,0.84892398]
[1743425224358,6e-07,82552.0,82551.0,1.08932398]
[1743425224779,6e-07,82552.0,82551.0,1.78932398]
[1743425226874,6e-07,82552.0,82551.0,1.77478313]
[1743425227123,6e-07,82552.0,82551.0,0.14729613]
[1743425227354,6e-07,82552.0,82551.0,0.38957013]
[1743425227581,6e-07,82552.0,82551.0,0.14729613]
[1743425227823,0.2543846,82552.0,82551.0,0.14729613]
[1743425228770,0.2422716,82552.0,82551.0,0.14729613]
[1743425229020,0.2543846,82552.0,82551.0,0.14729613]
[1743425229545,0.2543846,82552.0,82548.0,4.772e-05]
[1743425229546,0.254394,82549.0,82548.0,4.772e-05]
[1743425229782,0.337294,82549.0,82548.0,4.772e-05]
[1743425230477,6e-07,82552.0,82551.0,0.012113]
[1743425230718,6e-07,82552.0,82551.0,0.12260386]
[1743425230961,6e-07,82552.0,82551.0,0.36487786]
[1743425231188,6e-07,82552.0,82551.0,0.37699086]
[1743425231864,6e-07,82552.0,82551.0,0.39153171]
[1743425232093,6e-07,82552.0,82551.0,1.61490798]
[1743425232975,6e-07,82552.0,82551.0,1.34598013]
[1743425233207,6e-07,82552.0,82551.0,0.12260386]
[1743425233408,6e-07,82552.0,82551.0,0.37699086]
[1743425234114,6e-07,82552.0,82551.0,0.12260386]
[1743425234351,6e-07,82552.0,82551.0,0.36487786]
[1743425235058,0.2543846,82552.0,82551.0,0.12260386]
[1743425235761,0.2543846,82552.0,82548.0,4.772e-05]
[1743425235762,0.254394,82549.0,82548.0,4.772e-05]
[1743425240702,0.24228,82549.0,82548.0,0.12265158]
[1743425241665,0.254394,82549.0,82548.0,0.12265158]
[1743425241911,0.254394,82549.0,82548.0,4.772e-05]
[1743425242126,0.254394,82549.0,82548.0,7.2e-07]
[1743425242127,0.68792493,82549.0,82548.0,7.2e-07]
[1743425242348,0.629594,82549.0,82548.0,7.2e-07]
[1743425242558,1.091294,82549.0,82548.0,7.2e-07]
[1743425243321,0.554418,82541.0,82523.0,1.22337627]
[1743425243519,0.554418,82541.0,82540.0,0.00080642]
[1743425246502,0.56627825,82541.0,82540.0,0.00080642]
[1743425246722,0.554418,82541.0,82540.0,0.00080642]
[1743425247605,0.967818,82541.0,82540.0,0.00080642]
[1743425248297,0.667818,82541.0,82540.0,0.00080642]
[1743425248931,0.66187739,82541.0,82540.0,0.00080642]
[1743425249716,0.655703,82541.0,82540.0,0.12341028]
[1743425249864,0.667818,82541.0,82540.0,0.12341028]
[1743425250512,0.667818,82541.0,82540.0,0.00080642]
[1743425252364,0.655703,82541.0,82540.0,0.12341028]
[1743425252588,0.242303,82541.0,82540.0,0.12341028]
[1743425252792,0.242303,82541.0,82540.0,1.34678655]
[1743425253003,0.242298,82543.0,82540.0,1.34678655]
[1743425253213,0.242301,82542.0,82541.0,0.20120386]
[1743425253880,0.242277,82550.0,82541.0,0.20120386]
[1743425254137,0.242294,82545.0,82542.0,0.25684085]
[1743425254421,0.254418,82541.0,82540.0,0.00080642]
[1743425256250,0.667818,82541.0,82540.0,0.00080642]
[1743425257109,1.10317618,82541.0,82540.0,0.00080642]
[1743425257322,1.10317618,82541.0,82540.0,4.2e-07]
[1743425257323,1.19097618,82541.0,82540.0,4.2e-07]
[1743425257974,1.0507863,82541.0,82540.0,4.2e-07]
[1743425258605,0.9679863,82541.0,82540.0,4.2e-07]
[1743425260983,0.6679863,82541.0,82540.0,4.2e-07]
[1743425261205,0.4135683,82541.0,82540.0,4.2e-07]
[1743425261401,0.4135683,82541.0,82540.0,0.12260428]
[1743425261584,0.6558713,82541.0,82540.0,0.12260428]
[1743425262036,0.6558713,82541.0,82540.0,0.20380428]
[1743425262037,0.0001683,82541.0,82540.0,0.20380428]
[1743425262215,0.0001683,82541.0,82540.0,0.44611028]
[1743425262583,0.2424713,82541.0,82540.0,0.20380428]
[1743425263235,0.2424713,82541.0,82540.0,0.12260428]
[1743425263454,0.2545863,82541.0,82540.0,0.12260428]
[1743425264077,0.2545863,82541.0,82540.0,4.2e-07]
[1743425265124,0.6679863,82541.0,82540.0,4.2e-07]
[1743425267963,0.6558713,82541.0,82540.0,4.2e-07]
[1743425268179,0.4135683,82541.0,82540.0,0.37702528]
[1743425268392,0.4135683,82541.0,82540.0,0.46002528]
[1743425268602,0.4135683,82541.0,82540.0,0.50802528]
[1743425268808,0.0001683,82541.0,82540.0,0.52290273]
[1743425269641,0.0001683,82541.0,82540.0,0.82290273]
[1743425269962,6e-07,82552.0,82551.0,0.69152785]
[1743425270217,6e-07,82552.0,82551.0,3.50076065]
[1743425271490,0.0001683,82578.0,82577.0,0.242198]
[1743425271690,0.0001683,82578.0,82577.0,0.37691086]
[1743425272277,0.0001683,82578.0,82577.0,1.60028713]
[1743425272812,0.00063867,82578.0,82577.0,1.34598013]
[1743425273018,0.01274767,82578.0,82577.0,1.34598013]
[1743425273266,0.254332,82569.0,82568.0,1.22337627]
[1743425273468,0.254332,82569.0,82568.0,1.34598013]
[1743425273826,0.242221,82569.0,82568.0,1.34598013]
[1743425274046,0.254332,82569.0,82568.0,1.34598013]
[1743425274470,0.254332,82569.0,82568.0,1.22337627]
[1743425274881,0.242248,82560.0,82559.0,1.22337627]
[1743425275102,0.242248,82560.0,82559.0,1.34598013]
[1743425275321,0.25436,82560.0,82559.0,1.37040056]
[1743425275527,0.012112,82562.0,82559.0,1.37040056]
[1743425275726,0.242246,82561.0,82560.0,0.12260386]
[1743425276350,0.254358,82561.0,82560.0,0.12260386]
[1743425276790,0.242246,82561.0,82560.0,0.12260386]
[1743425277552,0.242231,82566.0,82560.0,0.12260386]
[1743425277755,0.242231,82566.0,82563.0,0.242238]
[1743425277912,0.242231,82566.0,82564.0,0.36483886]
[1743425278119,0.242221,82570.0,82566.0,0.242229]
[1743425278320,0.242227,82567.0,82564.0,0.37694986]
[1743425278516,0.239227,82567.0,82564.0,0.12260386]
[1743425278744,0.242227,82567.0,82564.0,0.12260386]
[1743425279538,0.254335,82568.0,82564.0,0.36483886]
[1743425279750,0.242227,82567.0,82564.0,0.36483886]
[1743425279969,0.012112,82560.0,82544.0,1.22285267]
[1743425280186,0.012111,82569.0,82539.0,0.012115]
[1743425280187,0.012113,82553.0,82550.0,1.22337627]
[1743425280419,0.242262,82555.0,82550.0,1.34598013]
[1743425280627,0.242257,82557.0,82550.0,1.58825613]
[1743425280837,0.242266,82554.0,82551.0,0.36487586]
[1743425281051,0.242271,82552.0,82551.0,0.12260386]
[1743425281700,0.00047008,82552.0,82551.0,0.36487786]
[1743425282092,0.00047008,82552.0,82551.0,0.37699086]
[1743425282512,0.00047008,82552.0,82551.0,0.39153171]
[1743425283141,0.00047008,82552.0,82551.0,0.12260386]
[1743425283354,0.25485408,82552.0,82551.0,0.12260386]
[1743425284176,0.00047008,82552.0,82551.0,0.12260386]
[1743425285030,0.00047008,82552.0,82551.0,0.36487786]
[1743425285237,0.00047008,82552.0,82551.0,0.37699086]
[1743425286308,0.00047008,82552.0,82551.0,0.46843171]
[1743425290702,0.00047008,82552.0,82551.0,0.51413171]
[1743425292495,0.00047008,82552.0,82551.0,0.51446831]
[1743425293467,8e-08,82552.0,82551.0,0.81446831]
[1743425297338,8e-08,82552.0,82551.0,1.22306831]
[1743425298846,8e-08,82552.0,82551.0,1.20852746]
[1743425299079,8e-08,82552.0,82551.0,1.22306831]
[1743425299317,8e-08,82552.0,82551.0,0.53154046]
[1743425299566,8e-08,82552.0,82551.0,0.78592746]
[1743425299767,8e-08,82552.0,82551.0,0.80046831]
[1743425300812,8e-08,82552.0,82551.0,0.54608131]
[1743425301021,8e-08,82552.0,82551.0,0.53154046]
[1743425301022,0.24227108,82552.0,82551.0,0.53154046]
[1743425301657,0.24227108,82552.0,82551.0,0.12294046]
[1743425301658,0.25438408,82552.0,82551.0,0.12294046]
[1743425301881,0.26670888,82552.0,82551.0,0.0003366]
[1743425302090,0.25438408,82552.0,82551.0,0.0003366]
[1743425303800,0.26638687,82552.0,82551.0,0.0003366]
[1743425304010,8e-08,82552.0,82551.0,0.0003366]
[1743425304214,8e-08,82552.0,82551.0,0.12294046]
[1743425304498,0.25438408,82552.0,82551.0,0.12294046]
[1743425304717,0.25438408,82552.0,82551.0,0.0003366]
[1743425304921,0.25455238,82552.0,82551.0,0.0003366]
[1743425306163,0.66795238,82552.0,82551.0,0.0003366]
[1743425308906,0.41356838,82552.0,82551.0,0.37732746]
[1743425309117,0.41356838,82552.0,82551.0,0.12294046]
[1743425309329,0.66795238,82552.0,82551.0,0.12294046]
[1743425309979,0.66795238,82552.0,82551.0,0.14681209]
[1743425310418,0.65583938,82552.0,82551.0,0.14681209]
[1743425310648,0.41356838,82552.0,82551.0,0.14681209]
[1743425310845,0.41356838,82552.0,82551.0,2.98756888]
[1743425310846,0.00016838,82552.0,82551.0,2.98756888]
[1743425311059,3.8e-07,82552.0,82551.0,3.28756888]
[1743425311266,3.8e-07,82552.0,82551.0,0.84133994]
[1743425312730,3.8e-07,82552.0,82551.0,0.87772794]
[1743425313145,3.8e-07,82552.0,82551.0,0.88973387]
[1743425314630,7.8e-07,82567.0,82566.0,0.64648185]
[1743425314836,7.8e-07,82567.0,82566.0,3.21531465]
[1743425316406,7.8e-07,82567.0,82566.0,3.22559545]
[1743425317035,7.8e-07,82567.0,82566.0,3.2401363]
[1743425318017,7.8e-07,82567.0,82566.0,2.8625363]
[1743425321132,7.8e-07,82567.0,82566.0,3.1625363]
[1743425321884,7.8e-07,82567.0,82566.0,3.2400363]
[1743425323492,7.8e-07,82567.0,82566.0,2.9400363]
[1743425327072,7.8e-07,82567.0,82566.0,3.2400363]
[1743425327250,7.8e-07,82567.0,82566.0,2.84799545]
[1743425327875,7.8e-07,82567.0,82566.0,2.8625363]
[1743425328622,0.24222778,82567.0,82566.0,2.59365445]
[1743425328836,7.8e-07,82567.0,82566.0,2.8625363]
[1743425329907,7.8e-07,82567.0,82566.0,2.8628729]
[1743425330749,7.8e-07,82567.0,82566.0,2.8507619]
[1743425330954,7.8e-07,82567.0,82566.0,2.8628729]
[1743425332035,7.8e-07,82567.0,82566.0,1.64002023]
[1743425332249,7.8e-07,82567.0,82566.0,0.14776211]
[1743425332484,0.26654868,82567.0,82566.0,0.12294046]
[1743425332720,0.26654868,82567.0,82566.0,0.0003366]
[1743425332972,0.25433878,82567.0,82566.0,0.0003366]
[1743425333445,0.27693362,82567.0,82566.0,0.0003366]
[1743425333727,0.63377078,82567.0,82566.0,0.0003366]
[1743425333995,1.16940309,82567.0,82566.0,0.0003366]
[1743425334449,1.05847183,82567.0,82566.0,0.0003366]
[1743425334747,0.70163467,82567.0,82566.0,0.0003366]
[1743425334994,0.68952367,82567.0,82566.0,0.12294046]
[1743425335494,0.70163467,82567.0,82566.0,0.12294046]
[1743425335747,0.70163467,82567.0,82566.0,0.0003366]
[1743425336690,1.20563853,82567.0,82566.0,0.0003366]
[1743425338149,1.25253853,82567.0,82566.0,0.0003366]
[1743425338386,1.12993467,82567.0,82566.0,0.0003366]
[1743425340325,1.09603878,82567.0,82566.0,0.0003366]
[1743425340833,0.96773878,82567.0,82566.0,0.0003366]
[1743425341448,1.04583878,82567.0,82566.0,0.0003366]
[1743425342541,1.05714993,82567.0,82566.0,0.0003366]
[1743425343686,1.22595379,82567.0,82566.0,6e-07]
[1743425344385,1.248565,82567.0,82566.0,6e-07]
[1743425346901,1.12596114,82567.0,82566.0,6e-07]
[1743425347124,1.00166114,82567.0,82566.0,6e-07]
[1743425347359,0.44732314,82567.0,82566.0,0.2422306]
[1743425347585,0.44732314,82567.0,82566.0,6e-07]
[1743425347811,0.70166114,82567.0,82566.0,6e-07]
[1743425348815,0.67904993,82567.0,82566.0,6e-07]
[1743425350063,0.66693893,82567.0,82566.0,6e-07]
[1743425350264,0.67904993,82567.0,82566.0,6e-07]
[1743425350476,0.42471193,82567.0,82566.0,0.36483446]
[1743425350680,0.42471193,82567.0,82566.0,0.37694546]
[1743425350880,0.42471193,82567.0,82566.0,0.36483446]
[1743425351049,0.01131193,82567.0,82566.0,0.37694546]
[1743425352111,0.01131193,82567.0,82566.0,0.39148631]
[1743425352689,7.8e-07,82567.0,82566.0,0.39148631]
[1743425356228,7.8e-07,82567.0,82566.0,0.12260446]
[1743425356640,7.8e-07,82567.0,82566.0,0.36483446]
[1743425358057,7.8e-07,82567.0,82566.0,0.12260446]
[1743425358291,7.8e-07,82567.0,82566.0,0.36483446]
[1743425358469,7.8e-07,82567.0,82566.0,0.37694546]
[1743425359244,7.8e-07,82567.0,82566.0,0.39148631]
[1743425360694,7.8e-07,82567.0,82566.0,0.12260446]
[1743425360964,7.8e-07,82567.0,82566.0,0.36483446]
[1743425361194,7.8e-07,82567.0,82566.0,0.12260446]
[1743425361370,0.24222778,82567.0,82566.0,0.12260446]
[1743425361713,7.8e-07,82567.0,82566.0,0.36483446]
[1743425363200,7.8e-07,82567.0,82566.0,0.12260446]
[1743425363414,0.24222778,82567.0,82566.0,0.12260446]
[1743425364862,0.26487176,82567.0,82566.0,0.12260446]
[1743425365345,0.27698276,82567.0,82566.0,6e-07]
[1743425365975,0.28830623,82567.0,82566.0,6e-07]
[1743425371740,0.41091009,82567.0,82566.0,6e-07]
[1743425371973,1.17031009,82567.0,82566.0,6e-07]
[1743425372928,1.04770623,82567.0,82566.0,6e-07]
[1743425373358,1.00170623,82567.0,82566.0,6e-07]
[1743425375006,0.97906225,82567.0,82566.0,6e-07]
[1743425375612,0.96773878,82567.0,82566.0,6e-07]
[1743425376911,0.66773878,82567.0,82566.0,6e-07]
[1743425377150,0.41340078,82567.0,82566.0,0.37694546]
[1743425379129,0.41340078,82567.0,82566.0,0.4014231]
[1743425380508,7.8e-07,82567.0,82566.0,0.4014231]
[1743425380909,7.8e-07,82567.0,82566.0,0.3893121]
[1743425381357,0.012113,82552.0,82533.0,0.1094598]
[1743425381559,0.554418,82541.0,82540.0,0.00080668]
[1743425383042,0.56625081,82541.0,82540.0,0.00080668]
[1743425383655,0.554418,82541.0,82540.0,0.00080668]
[1743425383860,0.312113,82550.0,82540.0,0.00080668]
[1743425384071,0.242303,82541.0,82540.0,0.00080668]
[1743425384707,0.254418,82541.0,82540.0,0.00080668]
[1743425386423,0.242303,82541.0,82540.0,0.00080668]
[1743425387243,0.254418,82541.0,82540.0,0.00080668]
[1743425389063,0.242303,82541.0,82540.0,0.00080668]
[1743425389262,0.4134,82551.0,82542.0,0.242298]
[1743425389607,0.242295,82544.0,82543.0,0.12260386]
[1743425390015,0.242294,82545.0,82543.0,0.12260386]
[1743425390250,0.242295,82544.0,82543.0,0.12260386]
[1743425391187,0.012111,82563.0,82545.0,0.012114]
[1743425391389,0.012112,82561.0,82550.0,0.242277]
[1743425391619,0.242271,82552.0,82551.0,0.12260386]
[1743425392228,0.242271,82552.0,82551.0,1.34598013]
[1743425392426,0.242254,82558.0,82552.0,0.012113]
[1743425392660,0.242264,82555.0,82553.0,0.12260386]
[1743425392837,0.242256,82558.0,82554.0,0.242265]
[1743425393038,0.242259,82557.0,82555.0,0.12260386]
[1743425393601,0.25,82580.0,82557.0,0.012112]
[1743425393813,0.25,82580.0,82566.0,0.26888185]
[1743425393814,0.242203,82576.0,82566.0,0.26888185]
[1743425394025,0.0001683,82578.0,82566.0,1.66216198]
[1743425394209,0.2422,82577.0,82566.0,1.66216198]
[1743425394442,0.0122773,82578.0,82566.0,1.66216198]
[1743425394645,0.2422,82577.0,82566.0,1.66216198]
[1743425394854,0.0001683,82578.0,82566.0,1.66216198]
[1743425394977,0.2423633,82578.0,82566.0,1.66216198]
[1743425395217,0.2423633,82578.0,82566.0,1.66220879]
[1743425395672,0.0001683,82578.0,82566.0,1.66220879]
[1743425396882,0.0001683,82578.0,82566.0,2.04000879]
[1743425399973,0.0001683,82578.0,82566.0,2.44860879]
[1743425401520,0.0001683,82578.0,82566.0,2.60360879]
[1743425401925,0.0001683,82578.0,82566.0,2.62860879]
[1743425405051,0.0001683,82578.0,82566.0,2.62360879]
[1743425405866,8e-08,82580.0,82579.0,0.492109]
[1743425406072,8e-08,82580.0,82579.0,4.76247465]
[1743425406271,1.8e-07,82596.0,82595.0,0.254252]
[1743425406451,1.8e-07,82596.0,82595.0,2.91932565]
[1743425407336,1.8e-07,82596.0,82595.0,2.83762565]
[1743425407520,1.8e-07,82596.0,82595.0,2.84997019]
[1743425408172,1.8e-07,82596.0,82595.0,2.82556546]
[1743425408382,1.8e-07,82596.0,82595.0,2.84975727]
[1743425408807,1.8e-07,82596.0,82595.0,2.87445537]
[1743425409690,0.0001681,82613.0,82599.0,0.312106]
[1743425409910,4.8e-07,82608.0,82607.0,0.39135971]
[1743425410119,4.8e-07,82608.0,82607.0,2.83758865]
[1743425410390,4.8e-07,82608.0,82607.0,3.13758865]
[1743425412647,6.8e-07,82615.0,82614.0,0.654193]
[1743425413001,6.8e-07,82615.0,82614.0,0.79133771]
[1743425414144,6.8e-07,82615.0,82614.0,1.31981771]
[1743425415079,0.0001684,82624.0,82614.0,1.31981771]
[1743425415080,2.8e-07,82623.0,82622.0,0.554169]
[1743425415283,2.8e-07,82623.0,82622.0,3.2230018]
[1743425415570,2.8e-07,82623.0,82622.0,3.23754265]
[1743425415899,2.8e-07,82623.0,82622.0,3.24682534]
[1743425416310,2.8e-07,82623.0,82622.0,4.01591215]
[1743425417090,6.8e-07,82624.0,82623.0,0.56870685]
[1743425417301,6.8e-07,82629.0,82628.0,0.26869085]
[1743425417503,8e-08,82642.0,82641.0,0.25411]
[1743425417706,8e-08,82642.0,82641.0,2.97840365]
[1743425419399,0.012096,82668.0,82641.0,2.97840365]
[1743425419400,0.01198455,82686.0,82654.0,0.1]
[1743425419614,0.253989,82681.0,82670.0,0.012096]
[1743425419791,0.012094,82684.0,82672.0,0.012095]
[1743425420020,0.253997,82678.0,82673.0,0.12260386]
[1743425420224,0.012095,82677.0,82671.0,0.14104]
[1743425420434,0.254014,82672.0,82671.0,0.14104]
[1743425420638,0.254014,82672.0,82661.0,1.22337627]
[1743425420842,0.241936,82667.0,82662.0,0.12260386]
[1743425421047,0.241945,82664.0,82662.0,0.26364386]
[1743425421254,0.254038,82665.0,82662.0,0.26364386]
[1743425421434,0.254042,82664.0,82662.0,0.26364386]
[1743425421869,0.012097,82663.0,82662.0,0.14104]
[1743425422079,0.012097,82663.0,82662.0,0.16515167]
[1743425422289,0.254042,82664.0,82662.0,0.16515167]
[1743425422468,0.012097,82663.0,82662.0,0.16515167]
[1743425423212,0.012097,82663.0,82662.0,0.02411167]
[1743425423646,0.012094,82684.0,82670.0,0.012096]
[1743425423873,0.012095,82678.0,82670.0,0.12260386]
[1743425424083,0.241902,82679.0,82670.0,0.26376386]
[1743425424296,0.012094,82681.0,82644.0,0.0121]
[1743425424297,0.012096,82669.0,82644.0,0.0121]
[1743425424527,0.012096,82666.0,82661.0,0.1412]
[1743425424749,0.4134,82671.0,82665.0,0.241937]
[1743425424957,0.4134,82671.0,82666.0,0.254033]
[1743425425166,0.4134,82671.0,82670.0,0.254021]
[1743425425402,0.4134,82671.0,82670.0,0.37662486]
[1743425425925,0.00047098,82672.0,82671.0,0.02663685]
[1743425426155,0.00047098,82672.0,82671.0,2.59788863]
[1743425426371,0.00047098,82672.0,82671.0,2.59546965]
[1743425426583,0.00047098,82672.0,82671.0,2.6045809]
[1743425426785,0.00047098,82672.0,82671.0,2.59546965]
[1743425427208,0.00047098,82672.0,82671.0,2.89546965]
[1743425427417,0.02496,82699.0,82677.0,0.01454085]
[1743425427635,0.02496,82699.0,82698.0,0.26847585]
[1743425427844,0.02496,82699.0,82698.0,2.47689598]
[1743425428042,0.02496,82699.0,82698.0,2.98306722]
[1743425428248,0.02496,82699.0,82698.0,3.14010722]
[1743425428450,1e-06,82699.0,82698.0,3.14010722]
[1743425428657,0.0124829,82705.0,82704.0,0.56845785]
[1743425428865,0.0124829,82705.0,82704.0,1.91396119]
[1743425429087,0.0124829,82705.0,82704.0,1.67213519]
[1743425429287,0.004,82719.0,82705.0,0.012091]
[1743425429490,0.004,82719.0,82718.0,0.12260386]
[1743425429706,0.004,82719.0,82718.0,1.51734913]
[1743425429922,0.004,82719.0,82718.0,2.04598013]
[1743425430547,0.004,82719.0,82718.0,1.61439498]
[1743425431014,0.004,82719.0,82718.0,1.77511498]
[1743425431635,0.0001681,82733.0,82732.0,0.553831]
[1743425431856,1e-07,82733.0,82732.0,3.36137422]
[1743425432088,1e-07,82733.0,82732.0,3.35637422]
[1743425432323,0.01182656,82786.0,82732.0,3.35637422]
[1743425432324,0.012079,82783.0,82745.0,0.253791]
[1743425432532,0.012079,82785.0,82745.0,3.46504465]
[1743425432736,0.241599,82782.0,82745.0,3.47622062]
[1743425432942,1e-07,82746.0,82745.0,3.85826743]
[1743425433150,0.00507134,82798.0,82793.0,0.253643]
[1743425433369,0.00507134,82798.0,82797.0,0.012077]
[1743425433595,0.00507134,82798.0,82797.0,1.37501331]
[1743425433801,0.0049709,82798.0,82797.0,1.53543431]
[1743425434001,0.0049709,82798.0,82797.0,1.35705346]
[1743425434421,0.00544276,82798.0,82797.0,1.35705346]
[1743425434631,0.00544276,82798.0,82797.0,1.37159431]
[1743425434852,0.00544276,82798.0,82797.0,1.35705346]
[1743425435059,0.00544276,82798.0,82797.0,0.01107333]
[1743425435060,0.01751976,82798.0,82797.0,0.01107333]
[1743425435287,0.012079,82787.0,82783.0,1.22337627]
[1743425435505,0.00544276,82798.0,82784.0,0.0109466]
[1743425435717,0.01751976,82798.0,82785.0,0.00241596]
[1743425435979,0.012079,82787.0,82786.0,0.13354883]
[1743425436200,0.241579,82789.0,82786.0,0.13354883]
[1743425436622,0.241583,82787.0,82786.0,0.13354883]
[1743425436833,0.012077,82801.0,82787.0,0.01454085]
[1743425437036,0.241569,82792.0,82788.0,0.12260386]
[1743425437289,0.25364,82795.0,82788.0,0.13354719]
[1743425437501,0.012078,82795.0,82788.0,0.13354719]
[1743425437916,0.253634,82796.0,82788.0,0.13354719]
[1743425438125,0.00544276,82798.0,82797.0,0.253631]
[1743425438324,0.00544276,82798.0,82797.0,0.12260386]
[1743425438546,0.00544276,82798.0,82797.0,0.1316185]
[1743425438752,0.25907076,82798.0,82797.0,0.00901464]
[1743425439046,0.25907076,82798.0,82795.0,1.22337627]
[1743425439257,0.25907076,82798.0,82786.0,0.17204]
[1743425439258,0.253662,82787.0,82786.0,1.22337627]
[1743425440076,0.553662,82787.0,82786.0,1.22337627]
[1743425440518,0.253705,82774.0,82773.0,1.22337627]
[1743425440725,0.253687,82779.0,82773.0,1.34598013]
[1743425440919,0.253692,82778.0,82774.0,0.12260386]
[1743425441126,0.241618,82776.0,82774.0,0.12260386]
[1743425441326,0.01208,82777.0,82774.0,0.12260386]
[1743425441526,0.24699676,82798.0,82779.0,0.01208]
[1743425441728,0.012078,82789.0,82780.0,0.37628786]
[1743425441932,0.241558,82796.0,82783.0,0.012079]
[1743425442102,0.241568,82793.0,82786.0,0.01454085]
[1743425442323,0.253652,82791.0,82787.0,0.13039524]
[1743425442516,0.253659,82788.0,82787.0,0.13039524]
[1743425442719,0.253659,82788.0,82787.0,0.00779138]
[1743425443093,0.253671,82784.0,82783.0,1.22337627]
[1743425443219,0.253671,82784.0,82783.0,1.34598013]
[1743425443439,0.253659,82788.0,82783.0,1.34598013]
[1743425443440,0.012069,82853.0,82801.0,0.012077]
[1743425443647,0.241395,82852.0,82808.0,1.28223885]
[1743425443849,0.01195346,82855.0,82808.0,2.00955885]
[1743425444056,1e-06,82809.0,82808.0,2.00955885]
[1743425444255,0.01195346,82855.0,82808.0,2.00955885]
[1743425444256,0.01195346,82855.0,82836.0,0.253512]
[1743425444456,0.0009071,82856.0,82836.0,3.36140565]
[1743425444680,1.8e-07,82839.0,82838.0,0.553506]
[1743425444879,1.8e-07,82839.0,82838.0,0.69065071]
[1743425445230,0.0009071,82856.0,82855.0,0.253454]
[1743425445434,0.0009071,82856.0,82855.0,1.97330013]
[1743425445661,0.0009071,82856.0,82855.0,1.98536913]
[1743425445870,0.0009071,82856.0,82855.0,1.99990998]
[1743425446101,0.0009071,82856.0,82855.0,1.98536913]
[1743425446301,0.0009071,82856.0,82855.0,2.16348913]
[1743425446512,0.0009071,82856.0,82855.0,2.17802998]
[1743425447117,0.0009071,82856.0,82855.0,2.15142013]
[1743425447319,0.2543581,82856.0,82855.0,2.15142013]
[1743425447530,0.0009071,82856.0,82855.0,2.15142013]
[1743425447733,0.0009071,82856.0,82855.0,2.40487413]
[1743425448140,0.0009071,82856.0,82855.0,2.15142013]
[1743425448781,0.0009071,82856.0,82855.0,2.16348913]
[1743425449204,0.0009071,82856.0,82855.0,2.15142013]
[1743425449403,0.2543581,82856.0,82855.0,2.15142013]
[1743425449779,0.2543581,82856.0,82855.0,1.85069627]
[1743425450665,0.253478,82847.0,82846.0,1.22337627]
[1743425450871,0.253509,82837.0,82836.0,4.681e-05]
[1743425452235,0.553509,82837.0,82836.0,4.681e-05]
[1743425453663,0.3,82837.0,82836.0,4.681e-05]
[1743425453868,0.553509,82837.0,82836.0,4.681e-05]
[1743425454400,0.67611286,82837.0,82836.0,8.1e-07]
[1743425455682,0.70111286,82837.0,82836.0,8.1e-07]
[1743425455852,0.69501993,82837.0,82836.0,8.1e-07]
[1743425456094,0.72001993,82837.0,82836.0,8.1e-07]
[1743425457411,0.69501993,82837.0,82836.0,8.1e-07]
[1743425457617,0.966909,82837.0,82836.0,8.1e-07]
[1743425458401,1.08951286,82837.0,82836.0,8.1e-07]
[1743425459167,1.08951286,82837.0,82836.0,2.1e-07]
[1743425459363,1.06955286,82837.0,82836.0,2.1e-07]
[1743425459569,1.06955286,82837.0,82801.0,0.62688]
[1743425459570,0.253617,82802.0,82801.0,0.62688]
[1743425459790,0.253617,82802.0,82801.0,0.62693669]
[1743425460027,0.253617,82802.0,82801.0,0.63338306]
[1743425460792,0.65491879,82810.0,82801.0,0.75598692]
[1743425460993,0.253611,82804.0,82802.0,0.12260386]
[1743425461221,0.012076,82803.0,82802.0,0.12260386]
[1743425462028,0.253617,82802.0,82801.0,0.62693669]
[1743425462275,0.241532,82805.0,82801.0,0.74954055]
[1743425462515,0.4281276,82820.0,82802.0,0.12260386]
[1743425462693,0.241511,82812.0,82804.0,0.012076]
[1743425462896,0.241498,82817.0,82809.0,0.253594]
[1743425463101,0.241498,82817.0,82809.0,0.37619786]
[1743425463321,0.24147,82826.0,82809.0,0.37619786]
[1743425463482,0.4281276,82830.0,82809.0,2.8224268]
[1743425463693,0.241485,82821.0,82809.0,1.59957413]
[1743425464130,0.41339979,82845.0,82832.0,0.012072]
[1743425464480,0.41339979,82845.0,82810.0,0.06204085]
[1743425464481,0.012072,82832.0,82831.0,0.17688]
[1743425464781,0.012071,82837.0,82831.0,0.12260386]
[1743425464990,0.241434,82839.0,82833.0,0.012072]
[1743425465198,0.012071,82839.0,82832.0,0.12260386]
[1743425465404,0.012071,82843.0,82834.0,0.13467586]
[1743425465615,0.24144,82837.0,82834.0,0.12260386]
[1743425465884,0.241426,82842.0,82835.0,0.24144]
[1743425466084,0.241426,82842.0,82836.0,0.12260386]
[1743425466341,0.65481479,82845.0,82838.0,0.012071]
[1743425466559,0.241415,82845.0,82839.0,0.12260386]
[1743425466757,0.01207,82844.0,82839.0,1.34598013]
[1743425466887,0.241426,82841.0,82839.0,1.34598013]
[1743425467293,0.012069,82854.0,82849.0,0.241402]
[1743425467500,0.012068,82858.0,82850.0,0.12260386]
[1743425467729,0.0010748,82856.0,82855.0,0.253454]
[1743425468082,0.0010748,82856.0,82855.0,0.32577371]
[1743425468733,0.42882829,82900.0,82890.0,0.253347]
[1743425468734,0.33451969,82899.0,82890.0,0.253347]
[1743425468989,0.33451969,82899.0,82895.0,0.012063]
[1743425468990,0.004,82899.0,82895.0,0.012063]
[1743425469189,0.004,82899.0,82891.0,1.05438386]
[1743425469190,0.24126,82898.0,82896.0,0.12501644]
[1743425469399,0.004,82899.0,82897.0,0.13714471]